[Event "*** Titled Tuesday 3|2 Blitz"]
[Site "Chess.com"]
[Date "2016.01.05"]
[Round "3"]
[White "VSERGUEI"]
[Black "TomsKantans"]
[Result "1/2-1/2"]
[WhiteElo "2427"]
[BlackElo "2320"]
[TimeControl "180+2"]
[EndTime "11:34:35 PST"]
[Termination "Game drawn by agreement"]

1. d4 {[%clk 0:03:01.9]} 1... Nf6 {[%clk 0:03:00.7]} 2. c4 {[%clk 0:03:02.2]}
2... c5 {[%clk 0:03:02.1]} 3. d5 {[%clk 0:03:03]} 3... e6 {[%clk 0:03:03.8]} 4.
Nc3 {[%clk 0:03:03.3]} 4... exd5 {[%clk 0:03:05.1]} 5. cxd5 {[%clk 0:03:04.8]}
5... d6 {[%clk 0:03:06.8]} 6. Nf3 {[%clk 0:03:06.1]} 6... g6 {[%clk 0:03:08.4]}
7. Bg5 {[%clk 0:03:06.9]} 7... h6 {[%clk 0:03:03.7]} 8. Bh4 {[%clk 0:03:07.3]}
8... Bg7 {[%clk 0:03:03.4]} 9. Nd2 {[%clk 0:03:08.1]} 9... g5 {[%clk 0:03:01.6]}
10. Bg3 {[%clk 0:03:08.3]} 10... Nh5 {[%clk 0:03:03]} 11. Qa4+ {[%clk
0:03:09.2]} 11... Kf8 {[%clk 0:02:50.1]} 12. Qc2 {[%clk 0:03:09.5]} 12... Nxg3
{[%clk 0:02:43.3]} 13. hxg3 {[%clk 0:03:09.4]} 13... Nd7 {[%clk 0:02:42.8]} 14.
e3 {[%clk 0:03:06.3]} 14... a6 {[%clk 0:02:32]} 15. a4 {[%clk 0:03:06.3]} 15...
b6 {[%clk 0:02:33.5]} 16. Be2 {[%clk 0:03:04.2]} 16... Qe7 {[%clk 0:02:34.4]}
17. Nc4 {[%clk 0:03:03.1]} 17... Rb8 {[%clk 0:02:34]} 18. g4 {[%clk 0:02:58.6]}
18... Ne5 {[%clk 0:02:31.5]} 19. Nxe5 {[%clk 0:02:54.5]} 19... Bxe5 {[%clk
0:02:33.4]} 20. g3 {[%clk 0:02:53.3]} 20... Bd7 {[%clk 0:02:26.4]} 21. Bxa6
{[%clk 0:02:47.8]} 21... Bxg4 {[%clk 0:02:26.8]} 22. Be2 {[%clk 0:02:48.2]}
22... Bd7 {[%clk 0:02:26.4]} 23. f4 {[%clk 0:02:43.1]} 23... Bg7 {[%clk
0:02:24.2]} 24. Kf2 {[%clk 0:02:43.6]} 24... Re8 {[%clk 0:02:16.1]} 25. Qd2
{[%clk 0:02:43.4]} 25... Bf5 {[%clk 0:01:18.3]} 26. Bb5 {[%clk 0:02:36.8]} 26...
Bd7 {[%clk 0:01:15.1]} 27. Bxd7 {[%clk 0:02:32.7]} 27... Qxd7 {[%clk 0:01:15]}
28. a5 {[%clk 0:02:33.3]} 28... bxa5 {[%clk 0:01:15.3]} 29. Rxa5 {[%clk
0:02:33.7]} 29... h5 {[%clk 0:01:12.7]} 30. Ne2 {[%clk 0:01:42.1]} 30... Qf5
{[%clk 0:00:56.5]} 31. Ra6 {[%clk 0:01:28.9]} 31... h4 {[%clk 0:00:55.1]} 32.
gxh4 {[%clk 0:01:28.7]} 32... gxf4 {[%clk 0:00:43.7]} 33. Nxf4 {[%clk 0:01:28]}
33... Qe4 {[%clk 0:00:25.6]} 34. Rh3 {[%clk 0:01:21.1]} 34... Be5 {[%clk
0:00:21.4]} 35. Qd3 {[%clk 0:01:18.2]} 35... Qb4 {[%clk 0:00:19.3]} 36. Qf5
{[%clk 0:01:09.3]} 36... Qxb2+ {[%clk 0:00:19.7]} 37. Kf3 {[%clk 0:01:09.1]}
37... Rg8 {[%clk 0:00:18.7]} 38. Ra7 {[%clk 0:01:06]} 38... Rg7 {[%clk
0:00:11.9]} 39. Rg3 {[%clk 0:01:06.2]} 39... Rxg3+ {[%clk 0:00:10.9]} 40. Kxg3
{[%clk 0:01:06.7]} 40... Bxf4+ {[%clk 0:00:12.8]} 41. Qxf4 {[%clk 0:01:06.8]}
41... Qg7+ {[%clk 0:00:12.9]} 42. Kf3 {[%clk 0:01:03.6]} 42... Qg6 {[%clk
0:00:14.2]} 43. Qg5 {[%clk 0:00:57.1]} 43... Qxg5 {[%clk 0:00:13.9]} 44. hxg5
{[%clk 0:00:57.7]} 44... Re5 {[%clk 0:00:15.8]} 45. Kf4 {[%clk 0:00:56.1]} 45...
Rxd5 {[%clk 0:00:16.9]} 46. e4 {[%clk 0:00:57.3]} 46... Rd1 {[%clk 0:00:17.8]}
47. Rc7 {[%clk 0:00:55.6]} 47... Kg7 {[%clk 0:00:18.7]} 48. Rc6 {[%clk
0:00:50.8]} 48... f6 {[%clk 0:00:15.3]} 49. gxf6+ {[%clk 0:00:48.1]} 49... Kxf6
{[%clk 0:00:17.2]} 50. e5+ {[%clk 0:00:49.3]} 50... Ke6 {[%clk 0:00:18.4]} 51.
exd6 {[%clk 0:00:48.6]} 51... Rxd6 {[%clk 0:00:16.6]} 52. Rxc5 {[%clk
0:00:49.1]} 52... Rd4+ {[%clk 0:00:17.3]} 1/2-1/2

[Event "*** Titled Tuesday 3|2 Blitz"]
[Site "Chess.com"]
[Date "2016.01.05"]
[Round "3"]
[White "BellJackson95"]
[Black "AdrianaNikolova"]
[Result "1-0"]
[WhiteElo "2270"]
[BlackElo "2173"]
[TimeControl "180+2"]
[EndTime "11:35:10 PST"]
[Termination "BellJackson95 won by checkmate"]

1. e4 {[%clk 0:03:01.9]} 1... c5 {[%clk 0:03:00.4]} 2. Nf3 {[%clk 0:03:02.5]}
2... d6 {[%clk 0:03:01.8]} 3. d4 {[%clk 0:03:02.6]} 3... cxd4 {[%clk 0:03:03.7]}
4. Nxd4 {[%clk 0:03:04.4]} 4... Nf6 {[%clk 0:03:04.7]} 5. Nc3 {[%clk 0:03:04]}
5... a6 {[%clk 0:03:05.8]} 6. Bg5 {[%clk 0:03:04.9]} 6... Nbd7 {[%clk
0:03:06.6]} 7. f4 {[%clk 0:02:59.8]} 7... e5 {[%clk 0:03:03.2]} 8. Nf3 {[%clk
0:02:52.5]} 8... Qc7 {[%clk 0:02:45.9]} 9. Bd3 {[%clk 0:02:33.5]} 9... h6 {[%clk
0:02:45.7]} 10. Bxf6 {[%clk 0:02:32.9]} 10... Nxf6 {[%clk 0:02:45.8]} 11. Qd2
{[%clk 0:02:24.5]} 11... Bg4 {[%clk 0:02:41.6]} 12. O-O {[%clk 0:02:22.3]} 12...
Be7 {[%clk 0:02:35.8]} 13. h3 {[%clk 0:02:19.4]} 13... Be6 {[%clk 0:02:29.8]}
14. Rae1 {[%clk 0:02:11.1]} 14... O-O {[%clk 0:02:28.5]} 15. g4 {[%clk
0:02:04.4]} 15... exf4 {[%clk 0:02:02.9]} 16. Qxf4 {[%clk 0:02:06.3]} 16... Qb6+
{[%clk 0:02:00.5]} 17. Kh1 {[%clk 0:01:57.4]} 17... Qxb2 {[%clk 0:02:00.1]} 18.
Ne2 {[%clk 0:01:51.7]} 18... d5 {[%clk 0:01:51.6]} 19. e5 {[%clk 0:01:43.7]}
19... Ne4 {[%clk 0:01:50.6]} 20. Ned4 {[%clk 0:01:41.8]} 20... Bc5 {[%clk
0:01:17]} 21. Rxe4 {[%clk 0:00:49.1]} 21... dxe4 {[%clk 0:00:59.4]} 22. Qxe4
{[%clk 0:00:51]} 22... g6 {[%clk 0:01:00]} 23. Nxe6 {[%clk 0:00:51]} 23... Rfc8
{[%clk 0:00:59.4]} 24. Nf4 {[%clk 0:00:35.7]} 24... Bf8 {[%clk 0:00:58.2]} 25.
Nxg6 {[%clk 0:00:25.9]} 25... Qb4 {[%clk 0:00:48.9]} 26. c4 {[%clk 0:00:18.4]}
26... Bg7 {[%clk 0:00:36.2]} 27. Ngh4 {[%clk 0:00:16.4]} 27... Qe7 {[%clk
0:00:26.9]} 28. Nf5 {[%clk 0:00:16.2]} 28... Qf8 {[%clk 0:00:22.1]} 29. N3d4
{[%clk 0:00:13.9]} 29... Rc6 {[%clk 0:00:20.5]} 30. Nxg7 {[%clk 0:00:13.5]}
30... Qxg7 {[%clk 0:00:20.7]} 31. Nf5 {[%clk 0:00:15.4]} 31... Qf8 {[%clk
0:00:18.8]} 32. Nd6 {[%clk 0:00:16.8]} 32... Qg7 {[%clk 0:00:15.9]} 33. Rxf7
{[%clk 0:00:15.1]} 33... Qxf7 {[%clk 0:00:17.8]} 34. Nxf7 {[%clk 0:00:16]} 34...
Kxf7 {[%clk 0:00:19.7]} 35. Qh7+ {[%clk 0:00:16.7]} 35... Ke6 {[%clk 0:00:20.8]}
36. Qf5+ {[%clk 0:00:15.7]} 36... Ke7 {[%clk 0:00:21.6]} 37. Qh7+ {[%clk
0:00:16.6]} 37... Ke6 {[%clk 0:00:22.2]} 38. Qxh6+ {[%clk 0:00:13.7]} 38... Kxe5
{[%clk 0:00:23.4]} 39. Qe3+ {[%clk 0:00:14.8]} 39... Kd6 {[%clk 0:00:23.7]} 40.
Qf4+ {[%clk 0:00:15.4]} 40... Ke7 {[%clk 0:00:23.9]} 41. Qg5+ {[%clk 0:00:13.9]}
41... Kd6 {[%clk 0:00:24.5]} 42. Be4 {[%clk 0:00:13.1]} 42... Rc5 {[%clk
0:00:16.7]} 43. Qf6+ {[%clk 0:00:11.2]} 43... Kd7 {[%clk 0:00:17.2]} 44. Bxb7
{[%clk 0:00:09.8]} 44... Rb8 {[%clk 0:00:15.4]} 45. Bd5 {[%clk 0:00:09.2]} 45...
Rb1+ {[%clk 0:00:15.2]} 46. Kg2 {[%clk 0:00:10.7]} 46... Ra5 {[%clk 0:00:12.9]}
47. Qf5+ {[%clk 0:00:11.5]} 47... Kd6 {[%clk 0:00:13.4]} 48. Qxb1 {[%clk
0:00:12.6]} 48... Kc5 {[%clk 0:00:13.8]} 49. Qb3 {[%clk 0:00:11.4]} 49... Kd4
{[%clk 0:00:14.4]} 50. a3 {[%clk 0:00:10.5]} 50... Rc5 {[%clk 0:00:12.8]} 51.
Kf3 {[%clk 0:00:10.8]} 51... Ke5 {[%clk 0:00:12.5]} 52. Qe3+ {[%clk 0:00:11.3]}
52... Kd6 {[%clk 0:00:14.1]} 53. Qe6+ {[%clk 0:00:12.5]} 53... Kc7 {[%clk
0:00:15.7]} 54. Qe7+ {[%clk 0:00:13.4]} 54... Kb6 {[%clk 0:00:16.9]} 55. Qb7+
{[%clk 0:00:14.5]} 55... Ka5 {[%clk 0:00:17.6]} 56. Qb4# {[%clk 0:00:15.8]} 1-0

[Event "*** Titled Tuesday 3|2 Blitz"]
[Site "Chess.com"]
[Date "2016.01.05"]
[Round "3"]
[White "HansCoolNiemann"]
[Black "Vorenus_Lucius"]
[Result "0-1"]
[WhiteElo "2203"]
[BlackElo "2447"]
[TimeControl "180+2"]
[EndTime "11:35:19 PST"]
[Termination "Vorenus_Lucius won on time"]

1. d4 {[%clk 0:02:37.8]} 1... d5 {[%clk 0:02:58.1]} 2. c4 {[%clk 0:02:38.6]}
2... c6 {[%clk 0:02:59.1]} 3. Nf3 {[%clk 0:02:39.3]} 3... Nf6 {[%clk 0:03:00]}
4. e3 {[%clk 0:02:40.5]} 4... Bf5 {[%clk 0:02:57]} 5. Nc3 {[%clk 0:02:40.9]}
5... e6 {[%clk 0:02:56.3]} 6. Nh4 {[%clk 0:02:41.2]} 6... Be4 {[%clk 0:02:57.5]}
7. f3 {[%clk 0:02:41.2]} 7... Bg6 {[%clk 0:02:58.6]} 8. Qb3 {[%clk 0:02:40.6]}
8... Qc7 {[%clk 0:02:48.9]} 9. Bd2 {[%clk 0:02:39.6]} 9... Nbd7 {[%clk
0:02:48.7]} 10. Nxg6 {[%clk 0:02:39.2]} 10... hxg6 {[%clk 0:02:49.4]} 11. cxd5
{[%clk 0:02:40.7]} 11... exd5 {[%clk 0:02:28.2]} 12. O-O-O {[%clk 0:02:39.2]}
12... O-O-O {[%clk 0:02:22.9]} 13. e4 {[%clk 0:02:37]} 13... dxe4 {[%clk
0:02:17.6]} 14. fxe4 {[%clk 0:02:38.9]} 14... Nb6 {[%clk 0:02:11.3]} 15. Bg5
{[%clk 0:02:17.9]} 15... Re8 {[%clk 0:01:38.9]} 16. Bd3 {[%clk 0:02:10.1]} 16...
Ng4 {[%clk 0:01:36.2]} 17. Rdf1 {[%clk 0:02:05.2]} 17... f6 {[%clk 0:01:33.5]}
18. Be2 {[%clk 0:00:28.3]} 18... Nxh2 {[%clk 0:00:52.8]} 19. Bf4 {[%clk
0:00:16.7]} 19... Bd6 {[%clk 0:00:21.2]} 20. e5 {[%clk 0:00:15.7]} 20... fxe5
{[%clk 0:00:22.2]} 21. Bxh2 {[%clk 0:00:15.6]} 21... Rxh2 {[%clk 0:00:23.3]} 22.
Rxh2 {[%clk 0:00:15.6]} 22... exd4 {[%clk 0:00:24.5]} 23. Bg4+ {[%clk
0:00:14.4]} 23... Kb8 {[%clk 0:00:25.5]} 24. Rh3 {[%clk 0:00:08.8]} 24... dxc3
{[%clk 0:00:24.8]} 25. Rxc3 {[%clk 0:00:10.1]} 25... Nd5 {[%clk 0:00:22]} 26.
Rd3 {[%clk 0:00:06.9]} 26... Be5 {[%clk 0:00:12.3]} 27. Kb1 {[%clk 0:00:07.2]}
27... Bf6 {[%clk 0:00:13.1]} 28. Rd2 {[%clk 0:00:06.5]} 28... a5 {[%clk
0:00:12.6]} 29. Qc2 {[%clk 0:00:07.2]} 29... Ne3 {[%clk 0:00:11.8]} 30. Re1
{[%clk 0:00:05.4]} 30... Nxc2 {[%clk 0:00:12.1]} 31. Rxe8+ {[%clk 0:00:06.7]}
31... Ka7 {[%clk 0:00:13.4]} 32. Rxc2 {[%clk 0:00:08.2]} 32... Qf4 {[%clk
0:00:13.9]} 33. Bf3 {[%clk 0:00:07.5]} 33... g5 {[%clk 0:00:14.3]} 34. Re4
{[%clk 0:00:08.7]} 34... Qf5 {[%clk 0:00:14.7]} 35. Rec4 {[%clk 0:00:09.8]}
35... Qe5 {[%clk 0:00:14.4]} 36. a3 {[%clk 0:00:09.9]} 36... Qe3 {[%clk
0:00:15.2]} 37. Ka2 {[%clk 0:00:10.6]} 37... Bd4 {[%clk 0:00:15.4]} 38. Re2
{[%clk 0:00:10.2]} 38... Qg1 {[%clk 0:00:14.8]} 39. Rd2 {[%clk 0:00:10.1]} 39...
Bf6 {[%clk 0:00:14.3]} 40. Rd7 {[%clk 0:00:09.9]} 40... Kb6 {[%clk 0:00:13.7]}
41. Rd3 {[%clk 0:00:10.3]} 41... Qf2 {[%clk 0:00:13.1]} 42. Rb3+ {[%clk
0:00:11]} 42... Kc7 {[%clk 0:00:14.2]} 43. Ra4 {[%clk 0:00:08.3]} 43... Qc5
{[%clk 0:00:13.6]} 44. Re4 {[%clk 0:00:07.6]} 44... Qc2 {[%clk 0:00:11.6]} 45.
Re2 {[%clk 0:00:07.4]} 45... Qc4 {[%clk 0:00:11.8]} 46. Re4 {[%clk 0:00:08.2]}
46... Qf7 {[%clk 0:00:12.3]} 47. Ra4 {[%clk 0:00:08.3]} 47... b6 {[%clk
0:00:08.9]} 48. Re4 {[%clk 0:00:07.8]} 48... b5 {[%clk 0:00:09.3]} 49. a4 {[%clk
0:00:08.8]} 49... Kb6 {[%clk 0:00:10.4]} 50. Be2 {[%clk 0:00:07]} 50... Qd5
{[%clk 0:00:08.8]} 51. Rg4 {[%clk 0:00:04.8]} 51... Qe6 {[%clk 0:00:04.4]} 0-1

[Event "*** Titled Tuesday 3|2 Blitz"]
[Site "Chess.com"]
[Date "2016.01.05"]
[Round "3"]
[White "jup1978"]
[Black "PowerThinking2650"]
[Result "1-0"]
[WhiteElo "2222"]
[BlackElo "2064"]
[TimeControl "180+2"]
[EndTime "11:35:21 PST"]
[Termination "jup1978 won by checkmate"]

1. e4 {[%clk 0:03:01.9]} 1... e5 {[%clk 0:02:04.1]} 2. Nf3 {[%clk 0:02:58.8]}
2... Nc6 {[%clk 0:02:04.3]} 3. Bb5 {[%clk 0:02:58]} 3... a6 {[%clk 0:02:04.9]}
4. Ba4 {[%clk 0:02:59.1]} 4... Nf6 {[%clk 0:02:05.5]} 5. Qe2 {[%clk 0:03:00.5]}
5... b5 {[%clk 0:02:01.7]} 6. Bb3 {[%clk 0:03:01.3]} 6... Be7 {[%clk 0:02:02.6]}
7. c3 {[%clk 0:03:00.9]} 7... d6 {[%clk 0:02:03.4]} 8. d4 {[%clk 0:03:02.2]}
8... exd4 {[%clk 0:02:00.9]} 9. Nxd4 {[%clk 0:03:00.3]} 9... Nxd4 {[%clk
0:01:57.4]} 10. cxd4 {[%clk 0:03:02.2]} 10... O-O {[%clk 0:01:58.2]} 11. O-O
{[%clk 0:03:02.5]} 11... Bb7 {[%clk 0:01:58.3]} 12. e5 {[%clk 0:02:59.3]} 12...
dxe5 {[%clk 0:01:48.5]} 13. dxe5 {[%clk 0:03:01.2]} 13... Nd5 {[%clk 0:01:47.5]}
14. Rd1 {[%clk 0:02:57.2]} 14... c6 {[%clk 0:01:46]} 15. a4 {[%clk 0:02:57.4]}
15... Bc5 {[%clk 0:01:40.9]} 16. Nc3 {[%clk 0:02:55.5]} 16... Qh4 {[%clk
0:01:38.4]} 17. g3 {[%clk 0:02:51.1]} 17... Nxc3 {[%clk 0:01:36.1]} 18. bxc3
{[%clk 0:02:50.7]} 18... Qh3 {[%clk 0:01:33]} 19. Qf1 {[%clk 0:02:45]} 19... Qh5
{[%clk 0:01:32.3]} 20. Re1 {[%clk 0:02:38]} 20... Rad8 {[%clk 0:01:29.8]} 21.
Qe2 {[%clk 0:02:36.1]} 21... Qh3 {[%clk 0:01:28.3]} 22. Qf1 {[%clk 0:02:27.6]}
22... Qh5 {[%clk 0:01:25.4]} 23. Be3 {[%clk 0:02:28.5]} 23... Bxe3 {[%clk
0:01:24.8]} 24. Rxe3 {[%clk 0:02:30.4]} 24... c5 {[%clk 0:01:25.5]} 25. Bd1
{[%clk 0:02:30.8]} 25... Qg6 {[%clk 0:01:17.2]} 26. axb5 {[%clk 0:02:31.5]}
26... axb5 {[%clk 0:01:17.5]} 27. Qxb5 {[%clk 0:02:32.3]} 27... Rb8 {[%clk
0:01:07.3]} 28. Qxc5 {[%clk 0:02:31.2]} 28... Rfc8 {[%clk 0:01:07.5]} 29. Qd6
{[%clk 0:02:30.5]} 29... Qf5 {[%clk 0:01:04.3]} 30. e6 {[%clk 0:02:26.6]} 30...
Rd8 {[%clk 0:00:56.3]} 31. exf7+ {[%clk 0:02:26.8]} 31... Qxf7 {[%clk
0:00:56.4]} 32. Qe6 {[%clk 0:02:06.3]} 32... Qxe6 {[%clk 0:00:52.9]} 33. Rxe6
{[%clk 0:02:08.2]} 33... Rbc8 {[%clk 0:00:50.5]} 34. Re3 {[%clk 0:02:08.7]}
34... Rd2 {[%clk 0:00:47.9]} 35. Bf3 {[%clk 0:02:03]} 35... Bxf3 {[%clk
0:00:42.8]} 36. Rxf3 {[%clk 0:02:04.9]} 36... Rc2 {[%clk 0:00:41.8]} 37. Ra7
{[%clk 0:02:04]} 37... Rf8 {[%clk 0:00:31.4]} 38. Rxf8+ {[%clk 0:02:01.8]} 38...
Kxf8 {[%clk 0:00:31.9]} 39. Rc7 {[%clk 0:02:03.7]} 39... h5 {[%clk 0:00:30.2]}
40. h4 {[%clk 0:02:04.7]} 40... Kg8 {[%clk 0:00:30.6]} 41. Kg2 {[%clk
0:02:06.1]} 41... Kh7 {[%clk 0:00:30.8]} 42. Kf3 {[%clk 0:02:07.7]} 42... Kh6
{[%clk 0:00:29.9]} 43. Rc6+ {[%clk 0:02:07.6]} 43... g6 {[%clk 0:00:30.4]} 44.
Ke3 {[%clk 0:02:08.8]} 44... Kg7 {[%clk 0:00:29.4]} 45. c4 {[%clk 0:02:08.8]}
45... Kf7 {[%clk 0:00:29.8]} 46. c5 {[%clk 0:02:10]} 46... Kg7 {[%clk
0:00:30.7]} 47. Rc7+ {[%clk 0:02:11.1]} 47... Kh6 {[%clk 0:00:31.4]} 48. c6
{[%clk 0:02:12.1]} 48... g5 {[%clk 0:00:32.5]} 49. hxg5+ {[%clk 0:02:12.6]}
49... Kxg5 {[%clk 0:00:33.4]} 50. Rc8 {[%clk 0:02:13.6]} 50... Kg6 {[%clk
0:00:33.7]} 51. c7 {[%clk 0:02:14.4]} 51... Kg7 {[%clk 0:00:34.5]} 52. Kd3
{[%clk 0:02:15.6]} 52... Rc1 {[%clk 0:00:32.2]} 53. Ke4 {[%clk 0:02:16.1]} 53...
Re1+ {[%clk 0:00:31.8]} 54. Kf5 {[%clk 0:02:15.5]} 54... Rc1 {[%clk 0:00:31.4]}
55. Ke6 {[%clk 0:02:16]} 55... Re1+ {[%clk 0:00:31.4]} 56. Kd5 {[%clk
0:02:12.2]} 56... Rd1+ {[%clk 0:00:31.6]} 57. Ke4 {[%clk 0:02:13.4]} 57... Rc1
{[%clk 0:00:31.9]} 58. Kd3 {[%clk 0:02:14.4]} 58... Rc6 {[%clk 0:00:29.3]} 59.
Kd4 {[%clk 0:02:14.3]} 59... Rc1 {[%clk 0:00:29.6]} 60. Ke4 {[%clk 0:02:15.4]}
60... Re1+ {[%clk 0:00:29.9]} 61. Kf4 {[%clk 0:02:16.6]} 61... Rc1 {[%clk
0:00:29.8]} 62. Kg5 {[%clk 0:02:18.1]} 62... Rc5+ {[%clk 0:00:29.8]} 63. Kh4
{[%clk 0:02:19.5]} 63... Kh7 {[%clk 0:00:30.4]} 64. Rf8 {[%clk 0:02:16.8]} 64...
Rxc7 {[%clk 0:00:30]} 65. Kxh5 {[%clk 0:02:18.3]} 65... Rc3 {[%clk 0:00:29.3]}
66. Kg4 {[%clk 0:02:15.4]} 66... Kg7 {[%clk 0:00:29.5]} 67. Rf5 {[%clk
0:02:14.3]} 67... Kg6 {[%clk 0:00:29.7]} 68. Rb5 {[%clk 0:02:15.2]} 68... Rc4+
{[%clk 0:00:30.1]} 69. f4 {[%clk 0:02:16.2]} 69... Rc6 {[%clk 0:00:30.7]} 70.
Kh4 {[%clk 0:02:16]} 70... Kh6 {[%clk 0:00:31.2]} 71. g4 {[%clk 0:02:17.2]}
71... Rc1 {[%clk 0:00:30.8]} 72. Rb6+ {[%clk 0:02:17.6]} 72... Kg7 {[%clk
0:00:31.4]} 73. Kg5 {[%clk 0:02:18.9]} 73... Rc5+ {[%clk 0:00:31.7]} 74. f5
{[%clk 0:02:20.2]} 74... Rc7 {[%clk 0:00:32]} 75. Kh5 {[%clk 0:02:20.7]} 75...
Kf8 {[%clk 0:00:31]} 76. g5 {[%clk 0:02:19]} 76... Kg8 {[%clk 0:00:31.8]} 77. f6
{[%clk 0:02:16.1]} 77... Ra7 {[%clk 0:00:31.4]} 78. Kg6 {[%clk 0:02:16.7]} 78...
Rg7+ {[%clk 0:00:31.2]} 79. Kf5 {[%clk 0:02:14.7]} 79... Ra7 {[%clk 0:00:31.2]}
80. Rb8+ {[%clk 0:02:15.7]} 80... Kf7 {[%clk 0:00:28.2]} 81. g6# {[%clk
0:02:08.7]} 1-0

[Event "*** Titled Tuesday 3|2 Blitz"]
[Site "Chess.com"]
[Date "2016.01.05"]
[Round "3"]
[White "aspired"]
[Black "oggy1984"]
[Result "1-0"]
[WhiteElo "2370"]
[BlackElo "2175"]
[TimeControl "180+2"]
[EndTime "11:35:22 PST"]
[Termination "aspired won by resignation"]

1. Nf3 {[%clk 0:03:01.9]} 1... Nf6 {[%clk 0:02:59.5]} 2. e3 {[%clk 0:03:01.8]}
2... g6 {[%clk 0:03:00]} 3. b4 {[%clk 0:03:02.4]} 3... Bg7 {[%clk 0:03:01.9]} 4.
Bb2 {[%clk 0:03:01.9]} 4... O-O {[%clk 0:03:03.8]} 5. c4 {[%clk 0:03:02.5]} 5...
d6 {[%clk 0:03:03.2]} 6. Be2 {[%clk 0:03:02]} 6... e5 {[%clk 0:03:04.3]} 7. d4
{[%clk 0:02:58.1]} 7... Nc6 {[%clk 0:03:01.9]} 8. b5 {[%clk 0:02:58]} 8... Nb8
{[%clk 0:02:44.8]} 9. dxe5 {[%clk 0:02:58.1]} 9... Ng4 {[%clk 0:02:45.3]} 10. h3
{[%clk 0:02:48.4]} 10... Nxe5 {[%clk 0:02:45.5]} 11. Nxe5 {[%clk 0:02:49.3]}
11... dxe5 {[%clk 0:02:45.8]} 12. Qxd8 {[%clk 0:02:46.7]} 12... Rxd8 {[%clk
0:02:47.7]} 13. Nd2 {[%clk 0:02:47.2]} 13... a6 {[%clk 0:02:43.5]} 14. a4 {[%clk
0:02:33.3]} 14... Nd7 {[%clk 0:02:36.9]} 15. Nb3 {[%clk 0:02:29.5]} 15... axb5
{[%clk 0:02:25.9]} 16. cxb5 {[%clk 0:02:24.7]} 16... Nb6 {[%clk 0:02:22.8]} 17.
a5 {[%clk 0:02:24.8]} 17... Nd5 {[%clk 0:02:23]} 18. O-O {[%clk 0:02:17.1]}
18... Bf5 {[%clk 0:02:09.3]} 19. Nc5 {[%clk 0:02:11.5]} 19... b6 {[%clk
0:02:02.1]} 20. Nb7 {[%clk 0:02:12.2]} 20... Rdb8 {[%clk 0:01:53.4]} 21. a6
{[%clk 0:02:12.8]} 21... e4 {[%clk 0:01:47.2]} 22. Bxg7 {[%clk 0:02:11.5]} 22...
Kxg7 {[%clk 0:01:47.6]} 23. Bc4 {[%clk 0:02:02.7]} 23... Ne7 {[%clk 0:01:38]}
24. Rfc1 {[%clk 0:01:01.4]} 24... Bc8 {[%clk 0:01:34.5]} 25. Nd8 {[%clk
0:00:58.9]} 25... Bd7 {[%clk 0:01:06.4]} 26. Nxf7 {[%clk 0:00:54.7]} 26... Bxb5
{[%clk 0:01:06.7]} 27. Bxb5 {[%clk 0:00:53.1]} 27... Kxf7 {[%clk 0:01:05.7]} 28.
Rxc7 {[%clk 0:00:50.2]} 28... Ke6 {[%clk 0:01:05.8]} 29. Rd1 {[%clk 0:00:41.9]}
29... Rd8 {[%clk 0:00:57.7]} 30. Bc4+ {[%clk 0:00:32]} 30... Kf6 {[%clk
0:00:51.2]} 31. Rxd8 {[%clk 0:00:32.1]} 31... Rxd8 {[%clk 0:00:53.1]} 32. Rb7
{[%clk 0:00:32.6]} 32... Rd1+ {[%clk 0:00:40.1]} 33. Kh2 {[%clk 0:00:32.7]}
33... Ra1 {[%clk 0:00:26.1]} 34. Rxb6+ {[%clk 0:00:30.6]} 34... Kf5 {[%clk
0:00:21.3]} 35. Rb7 {[%clk 0:00:24.2]} 35... Kf6 {[%clk 0:00:21.5]} 36. Rb6+
{[%clk 0:00:23.4]} 36... Kf5 {[%clk 0:00:22]} 37. g4+ {[%clk 0:00:23.7]} 37...
Kg5 {[%clk 0:00:21.7]} 38. Rb7 {[%clk 0:00:22.7]} 38... Kf6 {[%clk 0:00:18.6]}
39. Rb6+ {[%clk 0:00:23.3]} 39... Kg5 {[%clk 0:00:18.3]} 40. Re6 {[%clk
0:00:23.6]} 40... Nc8 {[%clk 0:00:17.4]} 41. Rxe4 {[%clk 0:00:24.1]} 41... Nd6
{[%clk 0:00:17.9]} 42. Rd4 {[%clk 0:00:21.3]} 42... Nxc4 {[%clk 0:00:17.6]} 43.
Rxc4 {[%clk 0:00:22.4]} 43... Rxa6 {[%clk 0:00:18.8]} 44. Kg3 {[%clk 0:00:23.2]}
44... Ra1 {[%clk 0:00:20.2]} 45. h4+ {[%clk 0:00:21.8]} 45... Kh6 {[%clk
0:00:20.6]} 46. f3 {[%clk 0:00:20.3]} 46... Ra5 {[%clk 0:00:20.4]} 47. Rc7
{[%clk 0:00:20.3]} 47... g5 {[%clk 0:00:18.7]} 48. hxg5+ {[%clk 0:00:20.9]}
48... Rxg5 {[%clk 0:00:18.8]} 49. f4 {[%clk 0:00:21.9]} 49... Ra5 {[%clk
0:00:19.1]} 50. g5+ {[%clk 0:00:20.6]} 50... Kg6 {[%clk 0:00:19.9]} 51. Rc6+
{[%clk 0:00:21.1]} 51... Kg7 {[%clk 0:00:20.3]} 52. e4 {[%clk 0:00:19.9]} 52...
Ra7 {[%clk 0:00:20.8]} 53. Kg4 {[%clk 0:00:20.5]} 53... Rb7 {[%clk 0:00:21.4]}
54. e5 {[%clk 0:00:21.2]} 54... Rc7 {[%clk 0:00:21.9]} 55. Rxc7+ {[%clk
0:00:21.7]} 1-0